fUST/lending_fUST_20250819
["ID","MTS","AMOUNT","RATE_DAILY","PERIOD"]
[380127587,1755559850853,-151.0,0.0002,2]
[380127588,1755559850862,-480.0,0.0002,2]
[380127589,1755559850873,-485.19,0.0002,2]
[380127590,1755559850882,-869.43,0.0002,2]
[380127591,1755559850892,-376.739017,0.0002,2]
[380127592,1755559850901,-376.739017,0.0002,2]
[380127593,1755559850911,-151.0,0.0002,2]
[380127594,1755559850920,-480.0,0.0002,2]
[380127595,1755559850929,-151.0,0.0002,2]
[380127596,1755559850938,-480.0,0.0002,2]
[380127597,1755559850947,-480.0,0.0002,2]
[380127598,1755559850956,-416.581201,0.0002,2]
[380127599,1755559850966,-764.56,0.0002,2]
[380127600,1755559850976,-416.581201,0.0002,2]
[380127601,1755559850985,-480.0,0.0002,2]
[380127602,1755559850995,-157.046261,0.0002,2]
[380127603,1755559851004,-151.0,0.0002,2]
[380127604,1755559851013,-157.046261,0.0002,2]
[380127605,1755559851022,-151.0,0.0002,2]
[380127606,1755559851031,-480.0,0.0002,2]
[380127607,1755559851042,-5867.22,0.0002,2]
[380127608,1755559851053,-151.0,0.0002,7]
[380127609,1755559851062,-151.0,0.0002,2]
[380127610,1755559851072,-151.0,0.0002,7]
[380127611,1755559851082,-151.0,0.0002,7]
[380127612,1755559851092,-153.736361,0.0002,7]
[380127613,1755559851102,-490.0,0.0002,2]
[380127614,1755559851111,-480.0,0.0002,2]
[380127615,1755559851121,-480.0,0.0002,2]
[380127616,1755559851131,-151.0,0.0002,2]
[380127617,1755559851141,-5881.3,0.0002,2]
[380127618,1755559851151,-480.0,0.0002,2]
[380127619,1755559851160,-151.0,0.0002,2]
[380127620,1755559851170,-3333.47,0.0002,2]
[380127621,1755559851179,-869.46,0.0002,2]
[380127622,1755559851188,-489.9,0.0002,2]
[380127623,1755559851197,-159.536863,0.0002,2]
[380127624,1755559851207,-480.0,0.0002,2]
[380127625,1755559851215,-839.86,0.0002,2]
[380127626,1755559851225,-151.0,0.0002,2]
[380127627,1755559851234,-352.96,0.0002,2]
[380127628,1755559851243,-355.03529513,0.0002,2]
[380127629,1755559851253,-151.0,0.0002,2]
[380127630,1755559851262,-1296.86,0.0002,2]
[380127631,1755559851271,-866.13,0.0002,2]
[380127632,1755559851280,-1891.97,0.0002,2]
[380127633,1755559851290,-875.33,0.0002,2]
[380127634,1755559851300,-2090.92,0.0002,2]
[380127635,1755559851309,-224.36982195,0.0002,20]
[380127636,1755559851318,-151.0,0.0002,2]
[380127637,1755559851327,-480.0,0.0002,2]
[380127638,1755559851336,-255.72666244,0.0002,2]
[380127639,1755559851476,-355.04333756,0.0002,2]
[380127640,1755559851486,-79.05666244,0.0002,2]
[380127641,1755559851630,-3106.46,0.00019178,2]
[380127642,1755559851640,-480.0,0.00019178,2]
[380127643,1755559851651,-480.0,0.00019452,2]
[380127644,1755559851663,-3106.46,0.00019452,2]
[380127645,1755559851672,-480.0,0.00019726,2]
[380127646,1755559851682,-3106.46,0.00019726,2]
[380127647,1755559851691,-9232.20950788,0.0002,2]
[380127648,1755559851703,-5932.49193531,0.0002,2]
[380127649,1755559851712,-480.0,0.0002,2]
[380127650,1755559851721,-151.0,0.0002,2]
[380127651,1755559851731,-151.0,0.0002,2]
[380127652,1755559851740,-5132.0554021,0.0002,2]
[380127653,1755559851749,-1370.75,0.0002,2]
[380127654,1755559851759,-151.0,0.0002,2]
[380127655,1755559851768,-391.83,0.0002,2]
[380127656,1755559851777,-480.0,0.0002,2]
[380127657,1755559851786,-1611.83,0.0002,2]
[380127658,1755559851796,-604.69,0.0002,2]
[380127659,1755559851805,-151.0,0.0002,2]
[380127660,1755559851814,-151.0,0.0002,2]
[380127661,1755559851823,-480.0,0.0002,2]
[380127662,1755559851832,-480.0,0.0002,2]
[380127663,1755559851842,-480.0,0.0002,2]
[380127664,1755559851851,-1944.65,0.0002,2]
[380127665,1755559851861,-480.0,0.0002,2]
[380127666,1755559851872,-151.0,0.0002,2]
[380127667,1755559851882,-480.0,0.0002,2]
[380127668,1755559851891,-480.0,0.0002,2]
[380127669,1755559851900,-151.0,0.0002,2]
[380127670,1755559851910,-3193.71,0.0002,2]
[380127671,1755559851919,-480.0,0.0002,2]
[380127672,1755559851928,-595.182846,0.0002,2]
[380127673,1755559851938,-480.0,0.0002,2]
[380127674,1755559851947,-151.0,0.0002,2]
[380127675,1755559852041,-675.44,0.0002,2]
[380127676,1755559852056,-595.182846,0.0002,2]
[380127677,1755559852066,-480.0,0.0002,2]
[380127678,1755559852075,-1469.708624,0.0002,2]
[380127679,1755559852085,-661.84,0.0002,2]
[380127680,1755559852094,-775.84,0.0002,2]
[380127681,1755559852104,-480.0,0.0002,2]
[380127682,1755559852113,-1469.708624,0.0002,2]
[380127683,1755559852123,-464.251417,0.0002,2]
[380127684,1755559852132,-480.0,0.0002,2]
[380127685,1755559852143,-464.251417,0.0002,2]
[380127686,1755559852152,-151.0,0.0002,2]
[380127687,1755559852161,-151.0,0.0002,2]
[380127688,1755559852171,-2278.0,0.0002,2]
[380127689,1755559852180,-151.0,0.0002,2]
[380127690,1755559852189,-151.0,0.0002,2]
[380127691,1755559852199,-435.10394596,0.0002,2]
[380127692,1755559948990,264.034911,0.00013699,2]
[380127783,1755560395386,-791.88279111,0.000189,2]
[380127784,1755560395411,-1200.0,0.00019176,2]
[380127785,1755560395435,-300.0,0.00019176,2]
[380127786,1755560395457,-300.0,0.00019177,2]
[380127787,1755560395480,-300.0,0.00019177,2]
[380127788,1755560395501,-300.0,0.00019177,2]
[380127789,1755560395526,-500.0,0.00019177,2]
[380127790,1755560395550,-242.26515483,0.00019177,2]
[380127791,1755560395573,-480.0,0.00019178,2]
[380127792,1755560395597,-480.0,0.00019178,2]
[380127793,1755560395621,-480.0,0.00019178,2]
[380127794,1755560395644,-480.0,0.00019178,2]
[380127795,1755560395666,-480.0,0.00019178,2]
[380127796,1755560395688,-480.0,0.00019178,2]
[380127797,1755560395711,-537.95,0.00019178,2]
[380127798,1755560395734,-480.0,0.00019178,2]
[380127799,1755560395756,-460.0,0.00019178,2]
[380127800,1755560395778,-467.49101115,0.00019178,2]
[380127801,1755560395801,-480.0,0.00019178,2]
[380127802,1755560395823,-285.90722262,0.00019178,2]
[380127803,1755560395846,-480.0,0.00019178,2]
[380127804,1755560395869,-480.0,0.00019178,2]
[380127805,1755560395892,-460.0,0.00019178,2]
[380127806,1755560395914,-480.0,0.00019178,2]
[380127807,1755560396066,-480.0,0.00019178,2]
[380127808,1755560396089,-516.24,0.00019178,2]
[380127809,1755560396112,-538.28,0.00019178,2]
[380127810,1755560396134,-480.0,0.00019178,2]
[380127811,1755560396156,-480.0,0.00019178,2]
[380127812,1755560396178,-480.0,0.00019178,2]
[380127813,1755560396201,-480.0,0.00019178,2]
[380127814,1755560396224,-480.0,0.00019178,2]
[380127815,1755560396246,-480.0,0.00019178,2]
[380127816,1755560396271,-482.53755632,0.00019178,2]
[380127817,1755560396296,-480.0,0.00019178,2]
[380127818,1755560396320,-480.0,0.00019178,2]
[380127819,1755560396343,-480.0,0.00019178,2]
[380127820,1755560396367,-480.0,0.00019178,2]
[380127821,1755560396389,-480.0,0.00019178,2]
[380127822,1755560396412,-480.0,0.00019178,2]
[380127823,1755560396437,-480.0,0.00019178,2]
[380127824,1755560396459,-480.0,0.00019178,2]
[380127825,1755560396481,-288.11009697,0.00019178,2]
[380127826,1755560396504,-480.0,0.00019178,2]
[380127827,1755560396526,-606.55635367,0.00019178,2]
[380127828,1755560396550,-480.0,0.00019178,2]
[380127829,1755560396572,-482.19471536,0.00019178,2]
[380127830,1755560396594,-480.0,0.00019178,2]
[380127831,1755560396617,-480.0,0.00019178,2]
[380127832,1755560396639,-480.0,0.00019178,2]
[380127833,1755560396661,-480.0,0.00019178,2]
[380127834,1755560396686,-480.0,0.00019178,2]
[380127835,1755560396710,-480.0,0.00019178,2]
[380127836,1755560396735,-522.46,0.00019178,2]
[380127837,1755560396760,-480.0,0.00019178,2]
[380127838,1755560396786,-480.0,0.00019178,2]
[380127839,1755560396810,-1661.84,0.00019178,2]
[380127840,1755560396832,-964.0,0.00019178,2]
[380127841,1755560396854,-480.0,0.00019178,2]
[380127842,1755560396876,-480.0,0.00019178,2]
[380127843,1755560396898,-480.0,0.00019178,2]
[380127844,1755560396920,-480.0,0.00019178,2]
[380127845,1755560396943,-480.0,0.00019178,2]
[380127846,1755560396965,-480.0,0.00019178,2]
[380127847,1755560396987,-480.0,0.00019178,2]
[380127848,1755560397009,-480.0,0.00019178,2]
[380127849,1755560397031,-480.0,0.00019178,2]
[380127850,1755560397052,-480.0,0.00019178,2]
[380127851,1755560397076,-862.5,0.00019178,2]
[380127852,1755560397100,-480.0,0.00019178,2]
[380127853,1755560397124,-480.0,0.00019178,2]
[380127854,1755560397147,-480.0,0.00019178,2]
[380127855,1755560397169,-1003.57548306,0.00019178,2]
[380127856,1755560397191,-480.0,0.00019178,2]
[380127857,1755560397215,-480.0,0.00019178,2]
[380127858,1755560397237,-480.0,0.00019178,2]
[380127859,1755560397263,-478.63750918,0.00019178,2]
[380127860,1755560397285,-480.0,0.00019178,2]
[380127861,1755560397308,-480.0,0.00019178,2]
[380127862,1755560397331,-490.21,0.00019178,2]
[380127863,1755560397354,-480.0,0.00019178,2]
[380127864,1755560397376,-480.0,0.00019178,2]
[380127865,1755560397398,-480.0,0.00019178,2]
[380127866,1755560397420,-460.0,0.00019178,2]
[380127867,1755560397441,-480.0,0.00019178,2]
[380127868,1755560397464,-480.0,0.00019178,2]
[380127869,1755560397485,-480.0,0.00019178,2]
[380127870,1755560397507,-360.0,0.00019178,2]
[380127871,1755560397528,-480.0,0.00019178,2]
[380127872,1755560397550,-480.0,0.00019178,2]
[380127873,1755560397571,-480.0,0.00019178,2]
[380127874,1755560397592,-480.0,0.00019178,2]
[380127875,1755560397614,-480.0,0.00019178,2]
[380127876,1755560397634,-461.83415373,0.00019178,2]
[380127877,1755560397656,-480.0,0.00019178,2]
[380127878,1755560397679,-480.0,0.00019178,2]
[380127879,1755560397701,-480.0,0.00019178,2]
[380127880,1755560397722,-480.0,0.00019178,2]
[380127881,1755560397744,-480.0,0.00019178,2]
[380127882,1755560397766,-480.0,0.00019178,2]
[380127883,1755560397788,-480.0,0.00019178,2]
[380127884,1755560397809,-480.0,0.00019178,2]
[380127885,1755560397832,-480.0,0.00019178,2]
[380127886,1755560397853,-480.0,0.00019178,2]
[380127887,1755560397876,-480.0,0.00019178,2]
[380127888,1755560397898,-480.0,0.00019178,2]
[380127889,1755560397920,-480.0,0.00019178,2]
[380127890,1755560397941,-480.0,0.00019178,2]
[380127891,1755560397962,-480.0,0.00019178,2]
[380127892,1755560397984,-480.0,0.00019178,2]
[380127893,1755560398006,-480.0,0.00019178,2]
[380127894,1755560398028,-480.0,0.00019178,2]
[380127895,1755560398050,-620.67,0.00019178,2]
[380127896,1755560398072,-480.0,0.00019178,2]
[380127897,1755560398094,-447.75979829,0.00019178,2]
[380127898,1755560398116,-480.0,0.00019178,2]
[380127899,1755560398138,-462.3,0.00019178,2]
[380127900,1755560398159,-480.0,0.00019178,2]
[380127901,1755560398182,-410.7320827,0.00019178,2]
[380127902,1755560398203,-480.0,0.00019178,2]
[380127903,1755560398225,-713.39,0.00019178,2]
[380127904,1755560398249,-724.55,0.00019178,2]
[380127905,1755560398274,-480.0,0.00019178,2]
[380127906,1755560398297,-480.0,0.00019178,2]
[380127907,1755560398320,-4921.12,0.00019178,2]
[380127908,1755560398343,-480.0,0.00019178,2]
[380127909,1755560398366,-480.0,0.00019178,2]
[380127910,1755560398388,-480.0,0.00019178,2]
[380127911,1755560398411,-480.0,0.00019178,2]
[380127912,1755560398537,-480.0,0.00019178,2]
[380127913,1755560398559,-480.0,0.00019178,2]
[380127914,1755560398581,-440.0,0.00019178,2]
[380127915,1755560398603,-741.78,0.00019178,2]
[380127916,1755560398625,-480.0,0.00019178,2]
[380127917,1755560398648,-480.0,0.00019178,2]
[380127918,1755560398672,-1182.29,0.00019178,2]
[380127919,1755560398695,-1474.49,0.00019178,2]
[380127920,1755560398716,-480.0,0.00019178,2]
[380127921,1755560398737,-480.0,0.00019178,2]
[380127922,1755560398759,-480.0,0.00019178,2]
[380127923,1755560398781,-719.89,0.00019178,2]
[380127924,1755560398805,-2777.9,0.00019178,2]
[380127925,1755560398828,-480.0,0.00019178,2]
[380127926,1755560398850,-480.0,0.00019178,2]
[380127927,1755560398873,-480.0,0.00019178,2]
[380127928,1755560398898,-1080.72,0.00019178,2]
[380127929,1755560398920,-480.0,0.00019178,2]
[380127930,1755560398942,-480.0,0.00019178,2]
[380127931,1755560398965,-480.0,0.00019178,2]
[380127932,1755560398988,-528.97,0.00019178,2]
[380127933,1755560399014,-2745.01,0.00019178,2]
[380127934,1755560399038,-480.0,0.00019178,2]
[380127935,1755560399060,-480.0,0.00019178,2]
[380127936,1755560399083,-480.0,0.00019178,2]
[380127937,1755560399106,-460.0,0.00019178,2]
[380127938,1755560399129,-480.0,0.00019178,2]
[380127939,1755560399151,-480.0,0.00019178,2]
[380127940,1755560399175,-480.0,0.00019178,2]
[380127941,1755560399198,-480.0,0.00019178,2]
[380127942,1755560399220,-382.2191684,0.00019178,2]
[380127943,1755560399242,-463.46612177,0.00019178,2]
[380127944,1755560399267,-322.03528139,0.00019178,2]
[380127945,1755560399290,-480.0,0.00019178,2]
[380127946,1755560399315,-480.0,0.00019178,2]
[380127947,1755560399338,-480.0,0.00019178,2]
[380127948,1755560399362,-1640.54,0.00019178,2]
[380127949,1755560399385,-480.0,0.00019178,2]
[380127950,1755560399408,-769.44,0.00019178,2]
[380127951,1755560399430,-480.0,0.00019178,2]
[380127952,1755560399453,-480.0,0.00019178,2]
[380127953,1755560399475,-480.0,0.00019178,2]
[380127954,1755560399498,-480.0,0.00019178,2]
[380127955,1755560399520,-480.0,0.00019178,2]
[380127956,1755560399543,-671.89,0.00019178,2]
[380127957,1755560399565,-480.0,0.00019178,2]
[380127958,1755560399589,-646.53,0.00019178,2]
[380127959,1755560399611,-528.8,0.00019178,2]
[380127960,1755560399634,-460.0,0.00019178,2]
[380127961,1755560399656,-480.0,0.00019178,2]
[380127962,1755560399679,-480.0,0.00019178,2]
[380127963,1755560399702,-480.0,0.00019178,2]
[380127964,1755560399724,-519.17,0.00019178,2]
[380127965,1755560399746,-480.0,0.00019178,2]
[380127966,1755560399769,-1699.7,0.00019178,2]
[380127967,1755560399791,-480.0,0.00019178,2]
[380127968,1755560399813,-480.0,0.00019178,2]
[380127969,1755560399838,-4952.93,0.00019178,2]
[380127970,1755560399860,-480.0,0.00019178,2]
[380127971,1755560399884,-480.0,0.00019178,2]
[380127972,1755560399907,-480.0,0.00019178,2]
[380127973,1755560399928,-480.0,0.00019178,2]
[380127974,1755560399949,-431.5047053,0.00019178,2]
[380127975,1755560399972,-480.0,0.00019178,2]
[380127976,1755560399994,-480.0,0.00019178,2]
[380127977,1755560400017,-551.53,0.00019178,2]
[380127978,1755560400040,-480.0,0.00019178,2]
[380127979,1755560400063,-480.0,0.00019178,2]
[380127980,1755560400088,-602.87,0.00019178,2]
[380127981,1755560400113,-1576.64,0.00019178,2]
[380127982,1755560400136,-480.0,0.00019178,2]
[380127983,1755560400160,-480.0,0.00019178,2]
[380127984,1755560400185,-1655.73,0.00019178,2]
[380127985,1755560400209,-480.0,0.00019178,2]
[380127986,1755560400232,-480.0,0.00019178,2]
[380127987,1755560400259,-480.0,0.00019178,2]
[380127988,1755560400282,-480.0,0.00019178,2]
[380127989,1755560400305,-480.0,0.00019178,2]
[380127990,1755560400329,-480.0,0.00019178,2]
[380127991,1755560400354,-4375.12,0.00019178,2]
[380127992,1755560400380,-548.54,0.00019178,2]
[380127993,1755560400403,-480.0,0.00019178,2]
[380127994,1755560400427,-444.72883789,0.00019178,2]
[380127995,1755560400452,-1363.19,0.00019178,2]
[380127996,1755560400474,-480.0,0.00019178,2]
[380127997,1755560400500,-480.0,0.00019178,2]
[380127998,1755560400524,-480.0,0.00019178,2]
[380127999,1755560400546,-480.0,0.00019178,2]
[380128000,1755560400569,-584.21,0.00019178,2]
[380128001,1755560400592,-612.99,0.00019178,2]
[380128002,1755560400617,-1870.84,0.00019178,2]
[380128003,1755560400639,-480.0,0.00019178,2]
[380128004,1755560400662,-154.96219892,0.00019178,2]
[380128005,1755560400684,-480.0,0.00019178,2]
[380128006,1755560400707,-480.0,0.00019178,2]
[380128007,1755560400729,-480.0,0.00019178,2]
[380128008,1755560400751,-500.0,0.00019178,2]
[380128009,1755560400775,-954.72,0.00019178,2]
[380128010,1755560400798,-480.0,0.00019178,2]
[380128011,1755560400820,-5000.0,0.00019178,2]
[380128012,1755560400842,-5000.0,0.00019178,2]
[380128013,1755560400966,-666.0,0.00019178,2]
[380128014,1755560400990,-48873.65975734,0.00019352,2]
[380128015,1755560439294,1097.196196,0.00018318,2]
[380128017,1755560792098,-446.15369234,0.000189,2]
[380128018,1755560836078,-81.7681684,0.000189,2]
[380128019,1755560836219,-2196.3475814,0.00019078,2]
[380128020,1755560853118,-287.7592482,0.00019078,2]
[380128033,1755560994024,265.410317,0.00013699,2]
[380128041,1755561032353,-635.84829669,0.000189,2]
[380128042,1755561032363,-160.0,0.00019174,2]
[380128043,1755561032374,-300.0,0.00019175,2]
[380128044,1755561032383,-300.0,0.00019175,2]
[380128045,1755561032394,-300.0,0.00019175,2]
[380128046,1755561032403,-300.0,0.00019175,2]
[380128047,1755561032412,-300.0,0.00019175,2]
[380128048,1755561032422,-1200.0,0.00019176,2]
[380128049,1755561032432,-1200.0,0.00019176,2]
[380128050,1755561032442,-2906.44799478,0.00019177,2]
[380128128,1755561034515,-4624.983028,0.00019177,2]
[380128133,1755561038497,-2120.61213832,0.00019177,2]
[380128143,1755561043140,-7971.50082048,0.00019177,2]
[380128144,1755561043150,-203.42917138,0.00019177,2]
[380128145,1755561043159,-627.54592527,0.00019177,2]
[380128146,1755561043168,-480.0,0.00019178,2]
[380128148,1755561043178,-480.0,0.00019178,2]
[380128149,1755561043187,-480.0,0.00019178,2]
[380128151,1755561043196,-463.18602924,0.00019178,2]
[380128152,1755561043206,-480.0,0.00019178,2]
[380128153,1755561043215,-480.0,0.00019178,2]
[380128154,1755561043226,-480.0,0.00019178,2]
[380128155,1755561043235,-480.0,0.00019178,2]
[380128156,1755561043244,-480.0,0.00019178,2]
[380128157,1755561043254,-480.0,0.00019178,2]
[380128158,1755561043263,-480.0,0.00019178,2]
[380128159,1755561043273,-480.0,0.00019178,2]
[380128160,1755561043282,-480.0,0.00019178,2]
[380128161,1755561043292,-480.0,0.00019178,2]
[380128162,1755561043302,-487.34099868,0.00019178,2]
[380128163,1755561043313,-586.03,0.00019178,2]
[380128164,1755561043325,-480.0,0.00019178,2]
[380128165,1755561043335,-480.0,0.00019178,2]
[380128166,1755561043345,-480.0,0.00019178,2]
[380128167,1755561043354,-480.0,0.00019178,2]
[380128168,1755561043364,-461.21555616,0.00019178,2]
[380128169,1755561043374,-480.0,0.00019178,2]
[380128170,1755561043383,-420.0,0.00019178,2]
[380128171,1755561043392,-480.0,0.00019178,2]
[380128172,1755561043401,-480.0,0.00019178,2]
[380128173,1755561043411,-480.0,0.00019178,2]
[380128174,1755561043420,-480.0,0.00019178,2]
[380128175,1755561043429,-480.0,0.00019178,2]
[380128176,1755561043438,-612.78,0.00019178,2]
[380128177,1755561043447,-480.0,0.00019178,2]
[380128178,1755561043458,-460.0,0.00019178,2]
[380128179,1755561043467,-480.0,0.00019178,2]
[380128180,1755561043476,-480.0,0.00019178,2]
[380128181,1755561043486,-480.0,0.00019178,2]
[380128182,1755561043504,-480.0,0.00019178,2]
[380128183,1755561043513,-480.0,0.00019178,2]
[380128184,1755561043522,-227.62847094,0.00019178,2]
[380128185,1755561043532,-480.0,0.00019178,2]
[380128186,1755561043541,-420.0,0.00019178,2]
[380128187,1755561043551,-480.0,0.00019178,2]
[380128188,1755561043561,-480.0,0.00019178,2]
[380128189,1755561043572,-480.0,0.00019178,2]
[380128190,1755561043583,-460.2127028,0.00019178,2]
[380128191,1755561043592,-480.0,0.00019178,2]
[380128192,1755561043602,-460.0,0.00019178,2]
[380128193,1755561043611,-480.0,0.00019178,2]
[380128194,1755561043735,-480.0,0.00019178,2]
[380128195,1755561043746,-480.0,0.00019178,2]
[380128196,1755561043755,-480.0,0.00019178,2]
[380128197,1755561043765,-480.0,0.00019178,2]
[380128198,1755561043774,-550.94710102,0.00019178,2]
[380128199,1755561043783,-480.0,0.00019178,2]
[380128200,1755561043793,-480.0,0.00019178,2]
[380128201,1755561043803,-376.24367862,0.00019178,2]
[380128202,1755561043813,-480.0,0.00019178,2]
[380128203,1755561043822,-480.0,0.00019178,2]
[380128204,1755561043831,-444.65978354,0.00019178,2]
[380128205,1755561043840,-480.0,0.00019178,2]
[380128206,1755561043850,-480.0,0.00019178,2]
[380128207,1755561043860,-480.0,0.00019178,2]
[380128208,1755561043870,-480.0,0.00019178,2]
[380128209,1755561043880,-480.0,0.00019178,2]
[380128210,1755561043889,-480.0,0.00019178,2]
[380128211,1755561043898,-546.81,0.00019178,2]
[380128212,1755561043908,-460.0,0.00019178,2]
[380128213,1755561043918,-993.07,0.00019178,2]
[380128214,1755561043928,-480.0,0.00019178,2]
[380128215,1755561043937,-480.0,0.00019178,2]
[380128216,1755561043947,-480.0,0.00019178,2]
[380128217,1755561043956,-440.0,0.00019178,2]
[380128218,1755561043966,-480.0,0.00019178,2]
[380128219,1755561043976,-480.0,0.00019178,2]
[380128220,1755561043985,-480.0,0.00019178,2]
[380128221,1755561043995,-480.0,0.00019178,2]
[380128222,1755561044004,-688.9,0.00019178,2]
[380128223,1755561044014,-480.0,0.00019178,2]
[380128224,1755561044023,-480.0,0.00019178,2]
[380128225,1755561044032,-879.92,0.00019178,2]
[380128226,1755561044042,-480.0,0.00019178,2]
[380128227,1755561044051,-480.0,0.00019178,2]
[380128228,1755561044060,-480.0,0.00019178,2]
[380128229,1755561044069,-480.0,0.00019178,2]
[380128230,1755561044078,-484.18296958,0.00019178,2]
[380128231,1755561044088,-480.0,0.00019178,2]
[380128232,1755561044097,-1645.57,0.00019178,2]
[380128233,1755561044106,-480.0,0.00019178,2]
[380128234,1755561044115,-480.0,0.00019178,2]
[380128235,1755561044124,-480.0,0.00019178,2]
[380128236,1755561044134,-480.0,0.00019178,2]
[380128237,1755561044143,-464.78722076,0.00019178,2]
[380128238,1755561044153,-480.0,0.00019178,2]
[380128239,1755561044162,-480.0,0.00019178,2]
[380128240,1755561044171,-489.23862253,0.00019178,2]
[380128241,1755561044181,-511.45,0.00019178,2]
[380128242,1755561044190,-480.0,0.00019178,2]
[380128243,1755561044199,-480.0,0.00019178,2]
[380128244,1755561044209,-505.43171473,0.00019178,2]
[380128245,1755561044218,-480.0,0.00019178,2]
[380128246,1755561044229,-406.57864724,0.00019178,2]
[380128247,1755561044238,-480.0,0.00019178,2]
[380128248,1755561044247,-509.79,0.00019178,2]
[380128249,1755561044257,-480.0,0.00019178,2]
[380128250,1755561044267,-480.0,0.00019178,2]
[380128251,1755561044276,-740.35,0.00019178,2]
[380128252,1755561044286,-480.0,0.00019178,2]
[380128253,1755561044295,-480.0,0.00019178,2]
[380128254,1755561044304,-535.54,0.00019178,2]
[380128255,1755561044313,-480.0,0.00019178,2]
[380128256,1755561044323,-480.0,0.00019178,2]
[380128257,1755561044332,-365.02010874,0.00019178,2]
[380128258,1755561044342,-792.55,0.00019178,2]
[380128259,1755561044352,-494.73,0.00019178,2]
[380128260,1755561044361,-480.0,0.00019178,2]
[380128261,1755561044371,-5206.13,0.00019178,2]
[380128262,1755561044380,-240.0,0.00019178,2]
[380128263,1755561044389,-480.0,0.00019178,2]
[380128264,1755561044398,-509.01168601,0.00019178,2]
[380128265,1755561044407,-752.0,0.00019178,2]
[380128266,1755561044417,-480.0,0.00019178,2]
[380128267,1755561044427,-480.0,0.00019178,2]
[380128268,1755561044437,-480.0,0.00019178,2]
[380128269,1755561044446,-480.0,0.00019178,2]
[380128270,1755561044456,-480.0,0.00019178,2]
[380128271,1755561044476,-278.0,0.00019178,2]
[380128272,1755561044486,-480.0,0.00019178,2]
[380128273,1755561044499,-460.0,0.00019178,2]
[380128274,1755561044508,-480.0,0.00019178,2]
[380128275,1755561044517,-480.0,0.00019178,2]
[380128276,1755561044527,-1553.62,0.00019178,2]
[380128277,1755561044537,-914.94,0.00019178,2]
[380128278,1755561044547,-480.0,0.00019178,2]
[380128279,1755561044557,-480.0,0.00019178,2]
[380128280,1755561044567,-156.05160832,0.00019178,2]
[380128281,1755561044576,-480.0,0.00019178,2]
[380128282,1755561044585,-480.0,0.00019178,2]
[380128283,1755561044595,-480.0,0.00019178,2]
[380128284,1755561044604,-480.0,0.00019178,2]
[380128285,1755561044613,-480.0,0.00019178,2]
[380128286,1755561044622,-480.0,0.00019178,2]
[380128287,1755561044631,-1822.43,0.00019178,2]
[380128288,1755561044640,-481.03340849,0.00019178,2]